bitfinex-derivatives/quotes_SOLF0:USTF0_20250206
["timestamp","ask_amount","ask_price","bid_price","bid_amount"]
[1738861231845,4.36,190.28,190.24,5.2551]
[1738861232039,4.36,190.28,190.2,19.07560073]
[1738861232239,1.8838,190.32,190.2,19.07560073]
[1738861232631,1.8838,190.32,190.23,19.07560073]
[1738861232838,0.0377102,190.28,190.24,0.03988715]
[1738861234338,0.0377102,190.28,190.26,5.2546]
[1738861235234,0.0377102,190.28,190.24,5.29498715]
[1738861235439,0.0377102,190.28,190.24,0.03988715]
[1738861236243,0.0377102,190.28,190.26,5.2546]
[1738861236444,0.0377102,190.28,190.24,0.03988715]
[1738861236944,0.0377102,190.28,190.27,5.2543]
[1738861237336,0.0377102,190.28,190.24,0.03988715]
[1738861238349,0.0377102,190.28,190.25,5.2548]
[1738861239347,0.0377102,190.28,190.26,5.2545]
[1738861239543,0.0377102,190.28,190.24,0.03988715]
[1738861240247,0.0377102,190.28,190.27,5.2543]
[1738861241353,0.0377102,190.28,190.25,5.2547]
[1738861241557,0.0377102,190.28,190.24,0.03988715]
[1738861242144,0.0377102,190.28,190.27,5.2543]
[1738861243747,0.0377102,190.28,190.24,0.03988715]
[1738861244151,5.2918102,190.28,190.24,0.03988715]
[1738861244547,0.0377102,190.28,190.24,0.03988715]
[1738861245351,19.11331093,190.28,190.24,0.03988715]
[1738861245548,19.11331093,190.28,190.15,1.5298]
[1738861245745,19.07560073,190.25,190.18,5.2566]
[1738861245950,19.07560073,190.25,190.1,19.07560073]
[1738861245951,1.6122,190.24,190.1,19.07560073]
[1738861246955,0.03827275,190.19,190.15,0.03921709]
[1738861247464,19.11387348,190.19,190.15,0.03921709]
[1738861248459,5.2574,190.16,190.15,0.03921709]
[1738861249459,23.47387348,190.19,189.98,114.6847]
[1738861249756,1.5958,190.18,190.0,3.4614]
[1738861249953,5.2574,190.16,190.0,3.4614]
[1738861250157,1.5958,190.18,190.0,3.4614]
[1738861250349,19.07560073,190.16,190.0,3.4614]
[1738861250753,9.4e-07,190.12,190.08,19.11119018]
[1738861250955,9.4e-07,190.12,190.11,19.07560073]
[1738861251249,1.6122,190.24,190.11,19.07560073]
[1738861252054,0.03352981,190.19,190.16,0.03993981]
[1738861253262,5.2571,190.17,190.16,0.03993981]
[1738861253456,19.10913054,190.19,190.03,5.0238]
[1738861253656,1.5803,190.18,190.03,5.0238]
[1738861254660,0.03864203,190.12,190.09,0.03840664]
[1738861255565,0.03864203,190.12,190.1,5.259]
[1738861255863,0.03864203,190.12,190.09,0.03840664]
[1738861256161,0.03864203,190.12,190.11,5.2588]
[1738861257058,4.203e-05,190.12,190.11,5.2588]
[1738861257363,24.33760073,190.31,190.1,38.15120146]
[1738861257660,5.2548,190.26,190.15,19.07560073]
[1738861258061,5.2548,190.26,190.21,5.2559]
[1738861258565,0.03681819,190.25,190.22,0.03604282]
[1738861259362,5.2552,190.24,190.22,0.03604282]
[1738861260659,0.03681819,190.25,190.22,0.03604282]
[1738861260854,5.2554,190.23,190.22,0.03604282]
[1738861261163,19.11241892,190.25,190.07,19.07560073]
[1738861261362,19.07560073,190.22,190.07,19.07560073]
[1738861261561,19.07560073,190.22,189.99,21.65974862]
[1738861261762,5.262,190.27,190.03,5.0238]
[1738861261763,19.07560073,190.19,190.03,5.0238]
[1738861261964,1.5582,190.18,190.1,5.2589]
[1738861262363,0.03969045,190.13,190.1,5.2589]
[1738861262564,0.03969045,190.13,190.11,5.2587]
[1738861263765,0.03969045,190.13,190.09,0.04024181]
[1738861263968,0.03969045,190.13,189.92,145.17954131]
[1738861264168,19.07560073,190.04,189.92,145.17954131]
[1738861264367,3.3176,190.03,189.92,145.17954131]
[1738861264768,5.2619,190.0,189.94,91.90239449]
[1738861264962,3.3176,190.03,189.94,86.63899449]
[1738861265468,5.262,190.0,189.98,0.03552536]
[1738861265969,0.03848126,190.01,189.98,0.03552536]
[1738861266768,0.03848126,190.01,190.0,5.2618]
[1738861266969,8.126e-05,190.01,190.0,5.2618]
[1738861267168,8.126e-05,190.01,189.98,0.03552536]
[1738861267368,8.126e-05,190.01,190.0,5.2618]
[1738861268867,8.126e-05,190.01,189.99,5.2619]
[1738861269473,8.126e-05,190.01,190.0,5.2618]
[1738861270570,6.0284,190.15,189.99,19.07560073]
[1738861270772,6.0284,190.15,190.04,19.07560073]
[1738861271070,5.2587,190.12,190.06,5.26]
[1738861271266,5.2587,190.12,190.04,19.07560073]
[1738861271667,0.03832874,190.1,190.06,5.29933051]
[1738861271871,0.03832874,190.1,190.06,0.03923051]
[1738861272171,0.03832874,190.1,190.07,19.07560073]
[1738861272474,3.4411,190.18,190.07,19.07560073]
[1738861272766,1.8616,190.18,190.1,19.07560073]
[1738861272967,5.2563,190.2,190.14,5.2577]
[1738861273163,4.36,190.22,190.1,19.07560073]
[1738861273569,5.2562,190.21,190.15,5.2576]
[1738861273769,0.0353198,190.18,190.15,5.2576]
[1738861274172,0.0353198,190.18,190.17,5.2571]
[1738861277372,1.5818,190.27,190.21,5.256]
[1738861277572,1.5818,190.27,190.19,19.07560073]
[1738861278173,5.2543,190.28,190.23,5.2554]
[1738861278370,5.2535,190.31,190.22,19.07560073]
[1738861278570,1.5886,190.32,190.22,19.07560073]
[1738861278776,0.03357645,190.27,190.24,0.03874041]
[1738861279876,5.2549,190.25,190.24,0.03874041]
[1738861280981,5.28817645,190.27,190.24,0.03874041]
[1738861281674,0.03357645,190.27,190.24,0.03874041]
[1738861283283,0.03357645,190.27,190.26,5.2546]
[1738861283677,0.03357645,190.27,190.24,0.03874041]
[1738861284078,5.2549,190.25,190.24,0.03874041]
[1738861284782,5.256,190.21,190.13,19.07560073]
[1738861285184,5.2566,190.19,190.11,5.0186]
[1738861285383,5.2566,190.19,190.11,1.601]
[1738861285986,0.03398215,190.17,190.14,5.2577]
[1738861286285,0.03398215,190.17,190.13,0.03355434]
[1738861286485,23.41560073,190.34,190.16,19.07560073]
[1738861286684,196.5294,190.39,190.17,1.5236]
[1738861286886,5.2527,190.33,190.27,19.07560073]
[1738861287088,3.5294,190.39,190.27,19.07560073]
[1738861287383,5.2516,190.37,190.27,19.07560073]
[1738861287584,21.10263442,190.38,190.31,0.03913221]
[1738861287886,5.2529,190.32,190.31,0.03913221]
[1738861288186,19.07560073,190.37,190.21,20.70750073]
[1738861288388,0.0359312,190.33,190.3,0.04032687]
[1738861290286,0.0359312,190.33,190.32,5.2529]
[1738861291687,0.0359312,190.33,190.3,0.04032687]
[1738861292192,5.2532,190.31,190.3,0.04032687]
[1738861292388,0.0359312,190.33,190.3,0.04032687]
[1738861293083,0.0359312,190.33,190.21,1.6319]
[1738861293383,5.2552,190.24,190.2,5.2562]
[1738861293590,31.01127132,190.28,190.14,31.01127132]
[1738861294090,5.2552,190.24,190.18,5.2568]
[1738861294287,31.01127132,190.28,190.14,31.01127132]
[1738861294488,0.03733883,190.23,190.19,0.039367]
[1738861297085,224.01127132,190.37,190.2,31.01127132]
[1738861297288,3.52,190.36,190.23,31.01127132]
[1738861297985,5.2526,190.34,190.26,5.2544]
[1738861298193,3.52,190.36,190.23,31.01127132]
[1738861298486,0.03803103,190.32,190.28,0.0363834]
[1738861298688,0.03803103,190.32,190.31,5.2532]
[1738861300787,0.03803103,190.32,190.29,5.2537]
[1738861301493,0.03803103,190.32,190.29,31.01127132]
[1738861301890,0.03803103,190.32,190.31,5.2532]
[1738861302090,0.03803103,190.32,190.28,0.0363834]
[1738861302292,5.2535,190.3,190.28,0.0363834]
[1738861302488,0.03803103,190.32,190.28,0.0363834]
[1738861303097,0.03803103,190.32,190.3,5.2534]
[1738861303298,0.03803103,190.32,190.28,0.0363834]
[1738861303596,0.03803103,190.32,190.29,31.01127132]
[1738861304597,0.03803103,190.32,190.31,5.2532]
[1738861305996,0.03803103,190.32,190.28,0.0363834]
[1738861306699,5.29103103,190.32,190.28,5.2903834]
[1738861306899,0.03803103,190.32,190.28,0.0363834]
[1738861307098,0.03803103,190.32,190.29,31.01127132]
[1738861307301,0.03803103,190.32,190.31,5.2532]
[1738861307805,6.843,190.41,190.29,31.01127132]
[1738861308099,4.34,190.47,190.35,31.01127132]
[1738861308295,5.2496,190.45,190.35,31.01127132]
[1738861308500,3.5449,190.47,190.42,5.2501]
[1738861308701,3.5449,190.47,190.38,31.01127132]
[1738861308999,3.5449,190.47,190.35,31.01127132]
[1738861309201,5.2860139,190.44,190.41,0.03443062]
[1738861309397,0.0363139,190.44,190.41,0.03443062]
[1738861311003,0.0363139,190.44,190.42,5.2501]
[1738861311301,0.0363139,190.44,190.41,0.03443062]
[1738861313101,1.39e-05,190.44,190.43,36.26117132]
[1738861314204,1.39e-05,190.44,190.43,5.2499]
[1738861316807,1.39e-05,190.44,190.41,0.03443062]
[1738861317007,1.39e-05,190.44,190.42,5.2501]
[1738861318011,1.39e-05,190.44,190.41,0.03443062]
[1738861318911,5.2499,190.43,190.41,0.03443062]
[1738861319811,5.2497139,190.44,190.41,0.03443062]
[1738861320016,1.39e-05,190.44,190.41,0.03443062]
[1738861320212,1.39e-05,190.44,190.43,5.2499]
[1738861321306,5.0875,190.53,190.41,31.04570194]
[1738861321611,35.35127132,190.6,190.46,31.01127132]
[1738861321913,5.247,190.54,190.46,31.01127132]
[1738861322611,0.03707189,190.52,190.48,0.03942058]
[1738861323012,0.03707189,190.52,190.37,31.01127132]
[1738861323406,31.01127132,190.54,190.37,31.01127132]
[1738861323605,5.249,190.47,190.42,5.25]
[1738861323910,31.01127132,190.51,190.32,35.83367132]
[1738861324118,5.2497,190.44,190.39,5.2508]
[1738861324311,0.03515969,190.46,190.43,0.03493721]
[1738861324706,5.9882,190.5,190.38,19.06123462]
[1738861324907,0.03689012,190.46,190.43,0.03846877]
[1738861325112,9.012e-05,190.46,190.44,19.06123462]
[1738861325311,9.012e-05,190.46,190.45,5.2494]
[1738861325510,1.6482,190.55,190.44,19.06123462]
[1738861325714,5.2471,190.54,190.49,5.248]
[1738861325918,1.6482,190.55,190.44,19.06123462]
[1738861326214,6.8948,190.55,190.5,5.2477]
[1738861326411,1.6482,190.55,190.44,19.06123462]
[1738861326926,0.0390072,190.54,190.51,5.28594071]
[1738861327717,0.0390072,190.54,190.51,0.03844071]
[1738861328326,5.2861072,190.54,190.51,0.03844071]
[1738861328519,0.0390072,190.54,190.51,0.03844071]
[1738861328826,0.0390072,190.54,190.51,5.28594071]
[1738861329119,0.0390072,190.54,190.51,0.03844071]
[1738861329622,0.0390072,190.54,190.37,30.94147174]
[1738861329820,5.249,190.47,190.37,30.94147174]
[1738861330022,30.94147174,190.52,190.37,30.94147174]
[1738861330222,4.34,190.51,190.37,30.94147174]
[1738861330421,5.2495,190.45,190.37,30.94147174]
[1738861330816,5.2495,190.45,190.42,0.0354885]
[1738861331226,5.2497,190.44,190.42,0.0354885]
[1738861331629,1.8757,190.45,190.42,0.0354885]
[1738861332024,0.038093,190.46,190.42,0.0354885]
[1738861332431,9.3e-05,190.46,190.43,30.94147174]
[1738861332731,9.3e-05,190.46,190.45,5.2494]
[1738861338719,9.3e-05,190.46,190.44,5.2496]
[1738861338926,9.3e-05,190.46,190.42,0.0354885]
[1738861339429,9.3e-05,190.46,190.45,5.2494]
[1738861340627,9.3e-05,190.46,190.43,5.2499]
[1738861340827,9.3e-05,190.46,190.42,0.0354885]
[1738861341330,5.2494,190.45,190.42,0.0354885]
[1738861341521,9.3e-05,190.46,190.42,0.0354885]
[1738861342229,9.3e-05,190.46,190.34,30.94147174]
[1738861342628,5.2496,190.45,190.34,30.94147174]
[1738861343029,5.2491,190.46,190.42,5.2501]
[1738861343229,3.3384,190.49,190.37,30.94147174]
[1738861343531,0.03345101,190.46,190.45,5.2494]
[1738861343932,3.3384,190.49,190.4,30.94147174]
[1738861344135,0.03408563,190.47,190.46,5.2491]
[1738861344332,0.03408563,190.47,190.33,30.94147174]
[1738861344727,5.2494,190.45,190.41,5.2502]
[1738861344931,3.3384,190.49,190.36,30.94147174]
[1738861345425,3.3384,190.49,190.42,30.94147174]
[1738861345629,2.606e-05,190.44,190.42,30.94147174]
[1738861346631,2.606e-05,190.44,190.43,5.2499]
[1738861347035,3.3396,190.55,190.52,5.2474]
[1738861347235,3.3396,190.55,190.47,30.94147174]
[1738861347436,21.10263442,190.58,190.47,30.94147174]
[1738861348230,0.0401952,190.54,190.51,0.03488156]
[1738861350639,0.0401952,190.54,190.51,5.28258156]
[1738861350842,0.0401952,190.54,190.51,0.03488156]
[1738861351338,5.2478,190.51,190.43,19.03896866]
[1738861351535,5.2478,190.51,190.4,47.93664744]
[1738861351736,19.03896866,190.56,190.4,47.93664744]
[1738861351938,19.03896866,190.5,190.4,28.89767878]
[1738861352243,3.2706,190.49,190.38,7.23793016]
[1738861352435,0.03995284,190.47,190.43,0.03646087]
[1738861354138,5.28875284,190.47,190.43,0.03646087]
[1738861354344,0.03995284,190.47,190.43,0.03646087]
[1738861355342,5.284e-05,190.47,190.46,24.28806866]
[1738861355936,4.32,190.61,190.54,5.2468]
[1738861356136,4.32,190.61,190.49,19.03896866]
[1738861356339,5.9823,190.61,190.49,19.03896866]
[1738861356537,5.2455,190.6,190.52,5.2473]
[1738861356738,1.6623,190.61,190.49,19.03896866]
[1738861357241,0.03816651,190.57,190.56,5.2463]
[1738861358338,0.03816651,190.57,190.53,0.0382047]
[1738861359842,5.28436651,190.57,190.53,0.0382047]
[1738861360036,0.03816651,190.57,190.53,0.0382047]
[1738861360542,0.03816651,190.57,190.56,5.2463]
[1738861360745,0.03816651,190.57,190.53,0.0382047]
[1738861360943,0.03816651,190.57,190.54,5.2467]
[1738861361145,0.03816651,190.57,190.53,0.0382047]
[1738861361540,0.03816651,190.57,190.54,5.2468]
[1738861361734,0.03816651,190.57,190.53,0.0382047]
[1738861364738,0.03816651,190.57,190.56,5.2463]
[1738861366147,6.651e-05,190.57,190.56,5.2463]
[1738861367042,5.2437,190.66,190.55,19.03896866]
[1738861367244,5.2437,190.66,190.58,19.03896866]
[1738861367442,5.2433,190.67,190.58,19.03896866]
[1738861367643,1.6432,190.68,190.53,5.0695]
[1738861367944,5.2444,190.64,190.53,5.0695]
[1738861368137,19.03896866,190.67,190.59,0.0345327]
[1738861368342,0.03426901,190.62,190.59,0.0345327]
[1738861368541,5.2452,190.61,190.59,0.0345327]
[1738861368846,0.03426901,190.62,190.59,0.0345327]
[1738861369148,0.03426901,190.62,190.61,5.245]
[1738861371148,0.03426901,190.62,190.59,0.0345327]
[1738861371548,5.27896901,190.62,190.59,0.0345327]
[1738861372647,0.03426901,190.62,190.59,0.0345327]
[1738861373153,5.245,190.61,190.59,0.0345327]
[1738861373442,0.03426901,190.62,190.59,0.0345327]
[1738861373647,23.35896866,190.61,190.45,28.16558897]
[1738861373850,1.6068,190.6,190.45,28.16558897]
[1738861374046,19.03896866,190.58,190.45,7.28042031]
[1738861374246,5.2473,190.53,190.45,7.28042031]
[1738861374444,1.6068,190.6,190.45,26.31938897]
[1738861374646,6.8523,190.6,190.56,5.2463]
[1738861374944,1.6064,190.66,190.52,19.03896866]
[1738861375155,0.03854379,190.6,190.55,19.03896866]
[1738861375347,0.03854379,190.6,190.59,5.2455]
[1738861375641,4.379e-05,190.6,190.59,5.2455]
[1738861379543,26.71441307,190.7,190.65,5.2437]
[1738861379743,21.47191307,190.7,190.58,19.03896866]
[1738861380042,5.2441,190.65,190.6,5.245]
[1738861380241,21.47191307,190.7,190.53,4.9597]
[1738861380443,19.03896866,190.71,190.53,4.9597]
[1738861380647,5.2439,190.65,190.6,5.245]
[1738861380850,19.03896866,190.68,190.6,5.245]
[1738861380851,0.03378328,190.64,190.6,0.03847117]
[1738861381348,0.03378328,190.64,190.61,5.2449]
[1738861381655,0.03378328,190.64,190.6,0.03847117]
[1738861381953,0.03378328,190.64,190.61,5.2449]
[1738861382153,0.03378328,190.64,190.6,0.03847117]
[1738861382549,0.03378328,190.64,190.62,5.2444]
[1738861382848,0.03378328,190.64,190.6,0.03847117]
[1738861383452,0.03378328,190.64,190.61,19.03896866]
[1738861383650,1.7598,190.73,190.67,5.2432]
[1738861383849,1.7598,190.73,190.64,19.03896866]
[1738861384758,1.7598,190.73,190.61,19.03896866]
[1738861385051,0.03877584,190.7,190.67,0.03681849]
[1738861385446,1.87,190.78,190.64,19.03896866]
[1738861385642,0.03443016,190.7,190.67,0.03604187]
[1738861385847,5.2414,190.75,190.68,5.243]
[1738861386151,0.03332302,190.7,190.64,19.03896866]
[1738861386543,0.03332302,190.7,190.65,0.03535501]
[1738861386949,0.03332302,190.7,190.69,5.2428]
[1738861388349,1.87,190.78,190.73,5.2416]
[1738861388657,19.03896866,190.86,190.7,19.03896866]
[1738861388954,5.2397,190.81,190.75,5.2409]
[1738861389155,1.5923,190.85,190.75,5.2409]
[1738861389653,5.2398,190.8,190.78,0.03578321]
[1738861389851,0.03863469,190.82,190.78,0.03578321]
[1738861390057,5.24,190.79,190.78,0.03578321]
[1738861390256,19.03896866,190.8,190.65,3.4606]
[1738861390450,1.8508,190.79,190.7,5.2424]
[1738861390647,19.03896866,190.77,190.61,19.03896866]
[1738861390853,1.5923,190.76,190.61,19.03896866]
[1738861391152,19.03896866,190.74,190.58,19.03896866]
[1738861391456,0.0331115,190.7,190.67,0.03749881]
[1738861391651,5.243,190.68,190.67,0.03749881]
[1738861391953,0.0331115,190.7,190.67,0.03749881]
[1738861392154,5.243,190.68,190.67,0.03749881]
[1738861392550,1.7815,190.69,190.55,67.22604625]
[1738861392754,5.2445,190.63,190.55,48.18707759]
[1738861392953,20.61646866,190.68,190.55,46.46947759]
[1738861393148,20.61646866,190.68,190.55,44.87307759]
[1738861393348,6.8208,190.68,190.58,5.2455]
[1738861393553,1.5775,190.68,190.57,19.03896866]
[1738861393757,0.03419754,190.65,190.61,0.0367713]
[1738861393951,0.03419754,190.65,190.63,5.2443]
[1738861394252,0.03419754,190.65,190.61,0.0367713]
[1738861394848,0.03419754,190.65,190.64,5.2441]
[1738861395748,3.3375,190.74,190.63,19.03896866]
[1738861395952,4.32,190.78,190.66,19.03896866]
[1738861396152,3.3375,190.82,190.69,19.03896866]
[1738861396352,5.2395,190.81,190.75,5.2409]
[1738861396553,3.3375,190.82,190.72,19.03896866]
[1738861396950,0.03612197,190.79,190.75,0.03436614]
[1738861397857,0.03612197,190.79,190.75,19.0733348]
[1738861398159,21.3785265,190.83,190.75,19.0733348]
[1738861398454,21.3785265,190.83,190.82,5.2392]
[1738861398959,21.3785265,190.83,190.75,19.03896866]
[1738861399162,21.3785265,190.83,190.73,5.0114]
[1738861399461,0.03666446,190.81,190.78,19.03896866]
[1738861399850,20.78976866,190.93,190.78,19.03896866]
[1738861400460,8.2976,190.9,190.78,19.03896866]
[1738861400859,3.0606,190.9,190.78,19.03896866]
[1738861401159,0.03344459,190.86,190.84,5.2385]
[1738861401761,0.03344459,190.86,190.83,5.2388]
[1738861402452,0.03344459,190.86,190.84,5.2386]
[1738861402654,0.03344459,190.86,190.82,0.03383439]
[1738861403062,0.03344459,190.86,190.82,7.81383439]
[1738861403951,0.03344459,190.86,190.82,12.00383439]
[1738861404151,0.03344459,190.86,190.82,17.24303439]
[1738861404352,0.03344459,190.86,190.82,12.00383439]
[1738861404752,0.03344459,190.86,190.85,5.2384]
[1738861407266,4.459e-05,190.86,190.85,5.2384]
[1738861409863,4.459e-05,190.86,190.84,5.2386]
[1738861410758,4.459e-05,190.86,190.83,3.52]
[1738861412067,4.459e-05,190.86,190.84,5.2386]
[1738861412771,4.459e-05,190.86,190.83,3.52]
[1738861412972,4.459e-05,190.86,190.85,5.2384]
[1738861413871,4.459e-05,190.86,190.83,8.7589]
[1738861414069,4.459e-05,190.86,190.83,3.52]
[1738861415065,4.459e-05,190.86,190.85,5.2384]
[1738861415464,1.8115,190.94,190.84,19.03896866]
[1738861415670,1.8115,190.94,190.92,5.2362]
[1738861415870,1.8115,190.94,190.84,19.03896866]
[1738861416266,1.8115,190.94,190.93,5.2362]
[1738861416472,1.576,190.95,190.93,5.2362]
[1738861416671,1.576,190.95,190.92,0.03790791]
[1738861416869,6.8119,190.95,190.92,0.03790791]
[1738861417068,1.576,190.95,190.84,19.03896866]
[1738861417274,1.576,190.95,190.93,5.2361]
[1738861417467,5.2351,190.97,190.93,5.2361]
[1738861418166,5.2351,190.97,190.92,0.04026786]
[1738861418372,5.2351,190.97,190.94,5.2359]
[1738861418669,5.2351,190.97,190.92,0.04026786]
[1738861418868,3.4481,190.99,190.92,0.04026786]
[1738861419477,5.2351,190.97,190.93,5.2362]
[1738861419971,3.4481,190.99,190.92,4.23026786]
[1738861420767,3.4481,190.99,190.98,5.2348]
[1738861421271,1.822,190.99,190.98,5.2348]
[1738861421472,199.8672,191.05,190.97,0.03522624]
[1738861421473,1.5929,191.04,190.97,0.03522624]
[1738861421673,1.5929,191.04,191.01,5.2338]
[1738861422070,24.30096866,191.09,190.97,0.03522624]
[1738861422270,5.2328,191.06,190.97,0.03522624]
[1738861422464,3.2533,191.08,190.96,19.03896866]
[1738861422669,3.2533,191.08,191.0,0.03943607]
[1738861422970,5.2331,191.05,191.01,5.234]
[1738861423170,3.2533,191.08,191.0,0.03943607]
[1738861423779,8.5153,191.08,191.0,0.03943607]
[1738861424170,5.2346,190.99,190.95,5.2355]
[1738861424367,19.03896866,191.03,190.92,14.84]
[1738861424777,19.03896866,191.03,190.94,5.2359]
[1738861425370,0.0392461,191.0,190.97,0.03387026]
[1738861426176,5.2347,190.99,190.97,0.03387026]
[1738861426377,0.0392461,191.0,190.97,5.26887026]
[1738861426581,0.0392461,191.0,190.97,0.03387026]
[1738861426773,5.2348,190.98,190.97,0.03387026]
[1738861427785,0.0392461,191.0,190.97,0.03387026]
[1738861427982,0.0392461,191.0,190.99,5.2345]
[1738861429784,0.0392461,191.0,190.97,0.03387026]
[1738861430288,0.0392461,191.0,190.97,5.26877026]
[1738861430786,0.0392461,191.0,190.98,1.44]
[1738861430989,0.0392461,191.0,190.97,0.03387026]
[1738861431287,0.0392461,191.0,190.92,4.19]
[1738861431487,19.03896866,190.97,190.92,4.19]
[1738861431681,1.5966,190.96,190.92,1.657]
[1738861432280,1.63682454,190.96,190.92,1.69510734]
[1738861432679,5.2361,190.94,190.92,1.69510734]
[1738861433084,1.63682454,190.96,190.92,1.69510734]
[1738861433286,1.63682454,190.96,190.83,22.55896866]
[1738861433287,1.63682454,190.96,190.83,3.52]
[1738861433490,19.03896866,190.94,190.83,3.52]
[1738861433891,19.03896866,190.91,190.83,3.52]
[1738861434087,4.3,190.92,190.83,7.71]
[1738861434291,4.3,190.92,190.83,11.3]
[1738861434491,19.03896866,190.88,190.86,4.771e-05]
[1738861434795,19.03896866,190.88,190.83,2.83044771]
[1738861434991,5.2386,190.84,190.76,28.97541518]
[1738861435295,19.03896866,190.85,190.76,28.97541518]
[1738861435493,5.2404,190.78,190.76,28.97541518]
[1738861435896,5.2404,190.78,190.76,39.98541518]
[1738861436790,5.2404,190.78,190.76,11.01]
[1738861437093,0.03745422,190.79,190.76,11.01]
[1738861437794,0.03745422,190.79,190.78,5.2403]
[1738861438189,23.33896866,190.9,190.76,12.662]
[1738861438395,23.33896866,190.9,190.76,14.1934]
[1738861438791,5.2395,190.81,190.76,26.3742]
[1738861438996,5.262,190.89,190.76,17.95]
[1738861439191,19.03896866,190.82,190.76,17.95]
[1738861439492,5.2406,190.77,190.76,17.95]
[1738861439691,19.03896866,190.82,190.77,0.03415296]
[1738861439895,19.03896866,190.85,190.77,0.03415296]
[1738861440096,0.03512497,190.81,190.77,0.03415296]
[1738861440396,0.03512497,190.81,190.77,0.03797226]
[1738861441492,0.03512497,190.81,190.77,4.22797226]
[1738861442197,0.03512497,190.81,190.8,5.2397]
[1738861442391,0.03512497,190.81,190.77,4.22797226]
[1738861443394,0.03512497,190.81,190.8,5.2397]
[1738861443597,0.03512497,190.81,190.77,4.22797226]
[1738861444698,0.03512497,190.81,190.8,5.2397]
[1738861444893,0.03512497,190.81,190.77,4.22797226]
[1738861445089,5.2401,190.79,190.77,4.22797226]
[1738861445295,0.03512497,190.81,190.77,4.22797226]
[1738861446299,5.2403,190.79,190.77,4.22797226]
[1738861446497,0.03512497,190.81,190.77,4.22797226]
[1738861446801,5.2403,190.78,190.77,4.22797226]
[1738861447593,5.2403,190.78,190.75,4.19]
[1738861447594,5.2406,190.77,190.75,4.19]
[1738861447801,19.03896866,190.76,190.73,8.04]
[1738861447998,19.03896866,190.76,190.64,3.1641]
[1738861447999,19.03896866,190.76,190.68,5.243]
[1738861448196,19.03896866,190.76,190.64,3.1641]
[1738861448399,19.03896866,190.79,190.64,3.1641]
[1738861448703,0.0369723,190.73,190.7,0.03985839]
[1738861448899,0.0369723,190.73,190.64,7.7641]
[1738861449103,0.03834261,190.7,190.67,11.35713102]
[1738861449905,5.243,190.68,190.67,11.35713102]
[1738861450402,5.243,190.68,190.67,0.03713102]
[1738861450700,0.03834261,190.7,190.69,5.2428]
[1738861450905,4.3,190.82,190.68,1.5634]
[1738861451398,5.24,190.8,190.74,5.2412]
[1738861451900,23.33896866,190.82,190.68,19.7234]
[1738861452098,19.07762708,190.79,190.68,19.7234]
[1738861452294,19.07762708,190.79,190.73,0.035968]
[1738861456301,5.2405,190.78,190.73,0.035968]
[1738861456502,19.07762708,190.79,190.73,0.035968]
[1738861456795,0.03865842,190.79,190.73,0.035968]
[1738861457197,0.03865842,190.79,190.74,19.03896866]
[1738861457397,19.03896866,190.9,190.78,5.2403]
[1738861457602,0.94894878,190.89,190.77,19.03896866]
[1738861457803,4.3,190.9,190.83,5.2388]
[1738861458002,5.246,190.86,190.75,1.5512]
[1738861458702,0.03792473,190.82,190.79,0.03686049]
[1738861458902,19.03896866,190.84,190.79,0.03686049]
[1738861459108,0.04011994,190.82,190.79,0.03686049]
[1738861459706,19.03896866,190.81,190.64,19.26896866]
[1738861459907,19.03896866,190.81,190.65,4.7719]
[1738861460099,4.3,190.8,190.65,4.7719]
[1738861460708,5.2407,190.77,190.7,5.2422]
[1738861461007,0.03993783,190.76,190.72,0.03748792]
[1738861461508,5.28103783,190.76,190.72,0.03748792]
[1738861462005,0.03993783,190.76,190.72,0.03748792]
[1738861462207,0.03993783,190.76,190.73,5.2414]
[1738861462911,0.03993783,190.76,190.72,0.03748792]
[1738861463408,5.28083783,190.76,190.72,0.03748792]
[1738861463706,0.03993783,190.76,190.72,0.03748792]
[1738861463898,5.28103783,190.76,190.72,5.27938792]
[1738861464808,5.2417,190.73,190.72,0.03748792]
[1738861465107,5.2417,190.73,190.72,8.23748792]
[1738861466611,0.03993783,190.76,190.72,8.23748792]
[1738861467512,193.0,190.86,190.72,8.23748792]
[1738861467705,24.28496866,190.84,190.73,1.5441]
[1738861467903,19.03896866,190.81,190.73,5.2416]
[1738861468105,19.03896866,190.81,190.72,8.2]
[1738861468306,19.03896866,190.81,190.72,13.4417]
[1738861468608,0.03968669,190.78,190.75,0.03350816]
[1738861469604,0.03968669,190.78,190.75,5.27440816]
[1738861469907,0.03968669,190.78,190.75,0.03350816]